Workbook

Sheet Vendor Evaluation Analysis
C3: Vendor Evaluation Analysis
C4: For
C5: Your Business, Inc.
D7: How can the small business owner objectively evaluate the various advantages and disadvantages of each vendor? One method is this form that evaluates each supplier on key purchasing variables.
D10: Enter numbers in Blue in unshaded cells only.
C12: Step 1 - Criteria.
D13: Assign weights to each criteria to reflect its relative importance to your business.
E15: Criteria | F15: Weight
E16: Quality = | F16: 35
E17: Price = | F17: 30
E18: Prompt Delivery = | F18: 20
E19: Service = | F19: 10
E20: Support = | F20: 5
E21: Total | F21: =SUM(F16:F20) -> 100
C23: Step 2 - Grading scale for each criteria
D25: Quality | F25: Number of acceptable lots from vendor divided by total number of lots from vendor.
D27: Price | F27: Lowest quoted price of all vendors divided by vendor X.
D29: Prompt Delivery | F29: Number of ontime deliveries from vendor divided by total number of deliveries by vendor.
D32: Service | F32: A subjective evaluation of the variety of services offered by each vendor.
D35: Support | F35: A subjective evaluation of the advice and assistance provided by each vendor.
C38: Step 3 - Compute a weighted score for each vendor
F40: VENDOR 1
H42: Weighted Score
D43: Criteria | E43: Weight | F43: Grade | H43: (Weight X Grade)
D45: Quality = | E45: =$F$16 -> 35 | F45: =E46/E47 -> 0.90 | H45: =E45*F45 -> 31.50
D46: Acceptable Lots = | E46: 9
D47: Total Lots = | E47: 10
D49: Price = | E49: =$F$17 -> 30 | F49: =E50/E51 -> 1.00 | H49: =E49*F49 -> 30.00
D50: Lowest Quote = | E50: 12.50
D51: Vendor 1 Quote = | E51: 12.50
D53: Delivery = | E53: =$F$18 -> 20 | F53: =E54/E55 -> 1.00 | H53: =E53*F53 -> 20.00
D54: Ontime = | E54: 10
D55: Total = | E55: 10
D57: Service = | E57: =$F$19 -> 10 | F57: =E58/E59 -> 0.80 | H57: =E57*F57 -> 8.00
D58: Satisfied = | E58: 8
D59: Total = | E59: 10
D61: Support = | E61: =$F$20 -> 5 | F61: =E62/E63 -> 1.00 | H61: =E61*F61 -> 5.00
D62: Requests = | E62: 5
D63: Total = | E63: 5
H64: =SUM(H45:H61) -> 94.50
F67: VENDOR 2
H69: Weighted Score
D70: Criteria | E70: Weight | F70: Grade | H70: (Weight X Grade)
D72: Quality = | E72: =$F$16 -> 35 | F72: =E73/E74 -> 0.80 | H72: =E72*F72 -> 28.00
D73: Acceptable Lots = | E73: 8
D74: Total Lots = | E74: 10
D76: Price = | E76: =$F$17 -> 30 | F76: =E77/E78 -> 0.93 | H76: =E76*F76 -> 27.78
D77: Lowest Quote = | E77: 12.50
D78: Vendor 1 Quote = | E78: 13.50
D80: Delivery = | E80: =$F$18 -> 20 | F80: =E81/E82 -> 0.80 | H80: =E80*F80 -> 16.00
D81: Ontime = | E81: 8
D82: Total = | E82: 10
D84: Service = | E84: =$F$19 -> 10 | F84: =E85/E86 -> 0.80 | H84: =E84*F84 -> 8.00
D85: Satisfied = | E85: 8
D86: Total = | E86: 10
D88: Support = | E88: =$F$20 -> 5 | F88: =E89/E90 -> 0.80 | H88: =E88*F88 -> 4.00
D89: Requests = | E89: 4
D90: Total = | E90: 5
H91: =SUM(H72:H88) -> 83.78
F94: VENDOR 3
H96: Weighted Score
D97: Criteria | E97: Weight | F97: Grade | H97: (Weight X Grade)
D99: Quality = | E99: =$F$16 -> 35 | F99: =E100/E101 -> 0.70 | H99: =E99*F99 -> 24.50
D100: Acceptable Lots = | E100: 7
D101: Total Lots = | E101: 10
D103: Price = | E103: =$F$17 -> 30 | F103: =E104/E105 -> 1.00 | H103: =E103*F103 -> 30.00
D104: Lowest Quote = | E104: 12.50
D105: Vendor 1 Quote = | E105: 12.50
D107: Delivery = | E107: =$F$18 -> 20 | F107: =E108/E109 -> 0.60 | H107: =E107*F107 -> 12.00
D108: Ontime = | E108: 6
D109: Total = | E109: 10
D111: Service = | E111: =$F$19 -> 10 | F111: =E112/E113 -> 0.70 | H111: =E111*F111 -> 7.00
D112: Satisfied = | E112: 7
D113: Total = | E113: 10
D115: Support = | E115: =$F$20 -> 5 | F115: =E116/E117 -> 0.20 | H115: =E115*F115 -> 1.00
D116: Requests = | E116: 1
D117: Total = | E117: 5
H118: =SUM(H99:H115) -> 74.50
D121: Based on this analysis you should purchase from the highest vendor rating. Which is =
H123: =MAX(H42:H118) -> 94.50
